fUSD/lending_fUSD_20251211
["ID","MTS","AMOUNT","RATE_DAILY","PERIOD"]
[398223104,1765440639573,-539.09,0.00018445,2]
[398223105,1765440639583,-429.0,0.0001858,2]
[398223106,1765440639592,-6913.59915211,0.00018673,2]
[398223107,1765440639601,-539.09,0.00018719,2]
[398223108,1765440639610,-500.0,0.000188,2]
[398223109,1765440639620,-500.0,0.000188,2]
[398223110,1765440639629,-500.0,0.000188,2]
[398223111,1765440639639,-500.0,0.000188,2]
[398223112,1765440639648,-500.0,0.000188,2]
[398223113,1765440639657,-500.0,0.000188,2]
[398223114,1765440639666,-500.0,0.000188,2]
[398223115,1765440639675,-625.72642535,0.000188,2]
[398223116,1765440639685,-500.0,0.000188,2]
[398223117,1765440639694,-539.09,0.00018993,2]
[398223118,1765440639703,-587.0,0.00019016,2]
[398223119,1765440639713,-200.0,0.00019082,2]
[398223120,1765440639722,-2351.0,0.00019207,2]
[398223121,1765440639732,-539.09,0.00019267,2]
[398223122,1765440639742,-362.22210655,0.00019348,2]
[398223123,1765440639751,-503.38309233,0.00019348,2]
[398223124,1765440639760,-539.1,0.00019541,2]
[398223125,1765440639770,-304.53,0.00020187,2]
[398223126,1765440639779,-3292.0,0.00021108,2]
[398223127,1765440639789,-6913.59915211,0.00021439,2]
[398223128,1765440639798,-480.8162296,0.00021461,2]
[398223129,1765440639808,-4159.04637628,0.00022,2]
[398223130,1765440639818,-150.0,0.00022231,2]
[398223131,1765440639828,-250.0,0.00022268,2]
[398223132,1765440639838,-419.0,0.00023196,2]
[398223133,1765440639847,-299.99,0.00023368,7]
[398223134,1765440639857,-2849.89400097,0.00023368,2]
[398223135,1765440639869,-2416.06200004,0.00023368,2]
[398223136,1765440639881,-382.33520524,0.00023368,2]
[398223137,1765440639892,-378.47664457,0.00023368,2]
[398223138,1765440639911,-597.61849702,0.00023368,2]
[398223139,1765440640108,-429.0,0.00017117,2]
[398223140,1765440640118,-288.61250113,0.00023368,2]
[398223141,1765440640131,-357.4999999,0.00023368,2]
[398223142,1765440640143,-587.67115113,0.00023368,2]
[398223143,1765440640152,-150.0,0.00023834,2]
[398223144,1765440640162,-170.68,0.00024067,2]
[398223145,1765440640171,-631.64884887,0.00024205,2]
[398223146,1765440640182,-913.53,0.00024205,2]
[398223147,1765440640260,-5368.42030324,0.00024205,2]
[398223148,1765440640270,-1003.13,0.00024332,2]
[398223149,1765440640279,-3555.48,0.00024569,2]
[398223150,1765440640289,-1000.0,0.00024658,2]
[398223151,1765440640298,-2751.0,0.0002486,2]
[398223152,1765440640308,-1239.27,0.00025295,2]
[398223153,1765440640317,-706.88,0.00026181,2]
[398223154,1765440640328,-1000.0,0.000264,2]
[398223155,1765440640337,-263.95,0.00026535,2]
[398223156,1765440640347,-304.53,0.00026676,2]
[398223157,1765440640356,-597.4,0.00026725,2]
[398223158,1765440640365,-3129.65,0.00026758,2]
[398223159,1765440640375,-6913.59915211,0.00026971,2]
[398223160,1765440640384,-1066.24164055,0.00027068,2]
[398223161,1765440640394,-2013.43,0.00027372,2]
[398223162,1765440640404,-1003.13,0.00027373,120]
[398223163,1765440640413,-500.0,0.00027397,14]
[398223164,1765440640423,-500.0,0.00028492,60]
[398223165,1765440640432,-1098.0,0.00028493,5]
[398223166,1765440640441,-500.0,0.00029425,2]
[398223167,1765440640451,-6913.59915211,0.00029736,2]
[398223168,1765440640460,-1098.0,0.00029918,5]
[398223169,1765440640469,-1000.0,0.000301,2]
[398223170,1765440640478,-3445.0,0.00030277,2]
[398223171,1765440640488,-611.0,0.00030277,2]
[398223172,1765440640497,-1260.0,0.00030277,2]
[398223173,1765440640506,-684.0,0.00030277,2]
[398223174,1765440640515,-4764.0,0.00030287,2]
[398223175,1765440640525,-563.0,0.00030287,2]
[398223176,1765440640535,-1003.13,0.00030415,120]
[398223178,1765440640544,-1098.0,0.00031414,5]
[398223179,1765440640554,-163.0,0.00031589,2]
[398223180,1765440640564,-500.0,0.00031863,2]
[398223181,1765440640573,-6913.59915211,0.00032502,2]
[398223182,1765440640583,-304.53,0.00033165,2]
[398223183,1765440640593,-611.0,0.00033277,2]
[398223184,1765440640602,-684.0,0.00033277,2]
[398223185,1765440640612,-4764.0,0.00033287,2]
[398223186,1765440640621,-1003.13,0.00033456,120]
[398223187,1765440640631,-6913.59915211,0.00035268,2]
[398223188,1765440640641,-225.45,0.000356,30]
[398223189,1765440640651,-151.0,0.00035616,120]
[398223190,1765440640660,-1072.11497817,0.00035849,5]
[398223191,1765440640669,-170.68,0.000361,2]
[398223192,1765440640678,-1000.0,0.000362,7]
[398223193,1765440640688,-611.1,0.00036277,2]
[398223194,1765440640697,-4764.0,0.00036287,2]
[398223195,1765440640706,-20970.0,0.00036463,7]
[398223196,1765440640715,-1003.13,0.00036498,120]
[398223197,1765440640725,-500.0,0.00036725,30]
[398223198,1765440640734,-500.0,0.00036725,30]
[398223199,1765440640743,-572.49907613,0.00036725,30]
[398223200,1765440640752,-510.79850095,0.00036725,30]
[398223201,1765440640761,-501.76348649,0.00036725,30]
[398223202,1765440640771,-1400.0,0.00036725,30]
[398223203,1765440640781,-1400.0,0.00036725,30]
[398223204,1765440640792,-1400.0,0.00036725,30]
[398223205,1765440640803,-1400.0,0.00036725,30]
[398223206,1765440640813,-1400.0,0.00036725,30]
[398223207,1765440640823,-1400.0,0.00036725,30]
[398223208,1765440640833,-1400.0,0.00036725,30]
[398223210,1765440640843,-1400.0,0.00036725,30]
[398223212,1765440640853,-1400.0,0.00036725,30]
[398223214,1765440640863,-1400.0,0.00036725,30]
[398223215,1765440640872,-1400.0,0.00036725,30]
[398223216,1765440640882,-1400.0,0.00036725,30]
[398223217,1765440640892,-1400.0,0.00036725,30]
[398223218,1765440640902,-1400.0,0.00036725,30]
[398223219,1765440640911,-170.65032945,0.00036725,30]
[398223220,1765440640920,-1400.0,0.00036725,30]
[398223221,1765440640930,-1400.0,0.00036725,30]
[398223222,1765440640939,-1400.0,0.00036725,30]
[398223223,1765440640949,-1400.0,0.00036725,30]
[398223224,1765440640959,-1400.0,0.00036725,30]
[398223225,1765440640969,-1400.0,0.00036725,30]
[398223226,1765440640978,-1400.0,0.00036725,30]
[398223227,1765440640988,-1400.0,0.00036725,30]
[398223228,1765440640997,-1400.0,0.00036725,30]
[398223229,1765440641007,-1400.0,0.00036725,30]
[398223230,1765440641016,-1400.0,0.00036725,30]
[398223231,1765440641026,-1400.0,0.00036725,30]
[398223232,1765440641036,-1400.0,0.00036725,30]
[398223233,1765440641047,-2177.21694583,0.00036725,30]
[398223234,1765440641056,-866.5,0.00036811,30]
[398223235,1765440641066,-7767.55,0.00036986,30]
[398223236,1765440641075,-4502.50282556,0.00037205,2]
[398223237,1765440641087,-676.36,0.000374,30]
[398223238,1765440641096,-1000.0,0.000374,7]
[398223239,1765440641105,-1298.34367318,0.000377,2]
[398223240,1765440641115,-179.19,0.00037808,2]
[398223241,1765440641127,-1298.34367318,0.00037961,2]
[398223242,1765440641136,-6913.59915211,0.00038034,2]
[398223243,1765440641146,-200.0,0.00038048,10]
[398223244,1765440641155,-200.0,0.00038049,10]
[398223245,1765440641164,-219.76448304,0.00038151,2]
[398223246,1765440641173,-373.20117738,0.00038156,2]
[398223247,1765440641182,-150.36185267,0.00038159,7]
[398223249,1765440641192,-480.43,0.00038219,2]
[398223250,1765440641201,-1405.8,0.00038219,2]
[398223251,1765440641212,-961.24,0.00038219,2]
[398223252,1765440641220,-960.62,0.00038219,2]
[398223253,1765440641230,-480.32,0.00038219,2]
[398223254,1765440641240,-188.76864753,0.00038245,2]
[398223255,1765440641249,-8898.0,0.00038255,5]
[398223256,1765440641259,-229209.46974688,0.00038255,10]
[398223257,1765440641268,-255555.0,0.00038256,30]
[398223258,1765440641277,-10000.0,0.00038256,2]
[398223259,1765440641286,-1434.77805256,0.00038256,2]
[398223260,1765440641296,-893.51255175,0.00038256,2]
[398223261,1765440641306,-2279.88388076,0.00038256,2]
[398223262,1765440641315,-1298.34367319,0.00038268,2]
[398223263,1765440641325,-418.39657254,0.00038355,60]
[398223264,1765440641334,-1000.0,0.00038355,2]
[398223265,1765440641344,-2013.43,0.00038355,60]
[398223266,1765440641353,-2013.43,0.00038355,60]
[398223267,1765440641362,-2013.43,0.00038355,60]
[398223268,1765440641372,-2013.43,0.00038355,60]
[398223269,1765440641381,-2013.43,0.00038355,60]
[398223270,1765440641389,-2013.43,0.00038355,60]
[398223271,1765440641399,-2013.43,0.00038355,60]
[398223272,1765440641408,-2013.43,0.00038355,60]
[398223273,1765440641417,-2013.43,0.00038355,60]
[398223274,1765440641426,-2013.43,0.00038355,60]
[398223275,1765440641435,-2013.43,0.00038355,60]
[398223276,1765440641443,-2013.43,0.00038355,60]
[398223277,1765440641452,-2013.43,0.00038355,60]
[398223278,1765440641461,-2013.43,0.00038355,60]
[398223279,1765440641471,-881.92,0.00038356,5]
[398223280,1765440641480,-888.84,0.00038356,5]
[398223281,1765440641489,-3860.27056857,0.00038356,2]
[398223282,1765440641499,-3860.27056857,0.00038356,4]
[398223283,1765440641507,-152.96,0.00038356,2]
[398223284,1765440641516,-891.2,0.00038356,5]
[398223285,1765440641526,-515.72326105,0.00038356,120]
[398223286,1765440641535,-118802.1909372,0.00038356,2]
[398223287,1765440641544,-500.0,0.00038356,60]
[398223288,1765440641553,-501.74217647,0.00038356,60]
[398223289,1765440641563,-504.02346718,0.00038356,60]
[398223290,1765440641572,-500.0,0.00038356,60]
[398223291,1765440641581,-500.0,0.00038356,60]
[398223292,1765440641590,-500.0,0.00038356,60]
[398223293,1765440641599,-500.0,0.00038356,60]
[398223294,1765440641608,-500.0,0.00038356,60]
[398223295,1765440641618,-500.0,0.00038356,60]
[398223296,1765440641627,-506.88597752,0.00038356,60]
[398223297,1765440641636,-500.0,0.00038356,60]
[398223298,1765440641645,-500.0,0.00038356,60]
[398223299,1765440641654,-507.43832306,0.00038356,60]
[398223300,1765440641663,-502.21001704,0.00038356,60]
[398223301,1765440641893,-500.0,0.00038356,60]
[398223302,1765440641904,-502.48187463,0.00038356,60]
[398223303,1765440641914,-503.90546548,0.00038356,60]
[398223304,1765440641924,-502.45472238,0.00038356,60]
[398223305,1765440641934,-504.00483203,0.00038356,60]
[398223306,1765440641944,-500.0,0.00038356,60]
[398223307,1765440641954,-500.0,0.00038356,60]
[398223308,1765440641963,-269.66887225,0.00038356,60]
[398223309,1765440641973,-158.91674368,0.00038356,60]
[398223310,1765440641983,-500.0,0.00038356,60]
[398223311,1765440641992,-500.0,0.00038356,60]
[398223312,1765440642001,-500.0,0.00038356,60]
[398223313,1765440642011,-501.7062107,0.00038356,60]
[398223314,1765440642020,-500.0,0.00038356,60]
[398223315,1765440642033,-500.0,0.00038356,60]
[398223316,1765440642047,-502.82019542,0.00038356,60]
[398223317,1765440642057,-500.0,0.00038356,60]
[398223318,1765440642066,-500.0,0.00038356,60]
[398223319,1765440642076,-500.0,0.00038356,60]
[398223320,1765440642087,-421.21008779,0.00038356,60]
[398223321,1765440642097,-500.0,0.00038356,60]
[398223322,1765440642108,-500.0,0.00038356,60]
[398223323,1765440642118,-500.0,0.00038356,60]
[398223324,1765440642128,-463.36571714,0.00038356,60]
[398223325,1765440642137,-500.0,0.00038356,60]
[398223326,1765440642147,-500.0,0.00038356,60]
[398223327,1765440642157,-503.39435486,0.00038356,60]
[398223328,1765440642167,-482.47916882,0.00038356,60]
[398223329,1765440642177,-360.24982748,0.00038356,60]
[398223330,1765440642186,-500.0,0.00038356,60]
[398223331,1765440642196,-500.0,0.00038356,60]
[398223332,1765440642206,-503.85485729,0.00038356,60]
[398223333,1765440642215,-507.16644502,0.00038356,60]
[398223334,1765440642224,-500.0,0.00038356,60]
[398223335,1765440642234,-500.0,0.00038356,60]
[398223336,1765440642243,-500.0,0.00038356,60]
[398223337,1765440642253,-508.45624904,0.00038356,60]
[398223338,1765440642262,-422.28310709,0.00038356,60]
[398223339,1765440642272,-500.0,0.00038356,60]
[398223340,1765440642282,-500.0,0.00038356,60]
[398223341,1765440642291,-500.0,0.00038356,60]
[398223342,1765440642301,-503.09553095,0.00038356,60]
[398223343,1765440642311,-511.0021208,0.00038356,60]
[398223344,1765440642321,-500.0,0.00038356,60]
[398223345,1765440642331,-505.75382487,0.00038356,60]
[398223346,1765440642341,-283.50381722,0.00038356,60]
[398223347,1765440642351,-500.0,0.00038356,60]
[398223348,1765440642360,-500.0,0.00038356,60]
[398223349,1765440642370,-500.0,0.00038356,60]
[398223350,1765440642380,-508.27831395,0.00038356,60]
[398223351,1765440642390,-500.0,0.00038356,60]
[398223352,1765440642404,-500.0,0.00038356,60]
[398223353,1765440642413,-500.0,0.00038356,60]
[398223354,1765440642423,-500.0,0.00038356,60]
[398223355,1765440642433,-500.0,0.00038356,60]
[398223356,1765440642442,-500.0,0.00038356,60]
[398223357,1765440642452,-504.8784574,0.00038356,60]
[398223358,1765440642462,-503.79033653,0.00038356,60]
[398223359,1765440642472,-200.0,0.00038356,5]
[398223360,1765440642482,-500.0,0.00038356,60]
[398223361,1765440642492,-505.51823882,0.00038356,60]
[398223362,1765440642502,-500.0,0.00038356,60]
[398223363,1765440642512,-500.0,0.00038356,60]
[398223364,1765440642522,-500.0,0.00038356,60]
[398223365,1765440642532,-500.0,0.00038356,60]
[398223366,1765440642542,-500.0,0.00038356,120]
[398223367,1765440642551,-510.01424966,0.00038356,60]
[398223368,1765440642562,-500.0,0.00038356,120]
[398223369,1765440642572,-150.19951195,0.00038356,60]
[398223370,1765440642583,-500.0,0.00038356,60]
[398223371,1765440642593,-504.06687223,0.00038356,60]
[398223372,1765440642603,-500.0,0.00038356,60]
[398223373,1765440642612,-500.0,0.00038356,60]
[398223374,1765440642622,-500.0,0.00038356,60]
[398223375,1765440642632,-500.0,0.00038356,60]
[398223376,1765440642641,-500.0,0.00038356,60]
[398223377,1765440642651,-500.0,0.00038356,60]
[398223378,1765440642661,-503.72353687,0.00038356,60]
[398223379,1765440642670,-221.78495212,0.00038356,60]
[398223380,1765440642680,-500.0,0.00038356,60]
[398223381,1765440642690,-503.64462882,0.00038356,60]
[398223382,1765440642699,-500.0,0.00038356,60]
[398223383,1765440642710,-500.0,0.00038356,60]
[398223384,1765440642719,-500.0,0.00038356,60]
[398223385,1765440642729,-500.93376655,0.00038356,60]
[398223386,1765440642739,-500.0,0.00038356,60]
[398223387,1765440642749,-500.0,0.00038356,60]
[398223388,1765440642762,-500.0,0.00038356,60]
[398223389,1765440642772,-500.0,0.00038356,60]
[398223390,1765440642782,-500.0,0.00038356,60]
[398223391,1765440642791,-500.0,0.00038356,60]
[398223392,1765440642801,-500.0,0.00038356,60]
[398223393,1765440642811,-500.0,0.00038356,60]
[398223394,1765440642821,-500.0,0.00038356,60]
[398223395,1765440642832,-500.0,0.00038356,60]
[398223396,1765440642842,-500.0,0.00038356,60]
[398223397,1765440642852,-500.0,0.00038356,60]
[398223398,1765440642861,-500.0,0.00038356,60]
[398223399,1765440642871,-500.0,0.00038356,60]
[398223400,1765440642881,-500.0,0.00038356,60]
[398223401,1765440642891,-500.0,0.00038356,60]
[398223402,1765440642901,-500.0,0.00038356,60]
[398223403,1765440642911,-500.0,0.00038356,60]
[398223404,1765440642921,-500.0,0.00038356,60]
[398223405,1765440642931,-500.0,0.00038356,60]
[398223406,1765440642940,-500.0,0.00038356,60]
[398223407,1765440642949,-322.07522611,0.00038356,60]
[398223408,1765440642962,-498.36251989,0.00038356,60]
[398223409,1765440642972,-500.0,0.00038356,60]
[398223410,1765440642981,-500.0,0.00038356,60]
[398223411,1765440642991,-500.0,0.00038356,60]
[398223412,1765440643000,-507.67419453,0.00038356,60]
[398223413,1765440643010,-1000.0,0.00038356,120]
[398223414,1765440643021,-500.0,0.00038356,120]
[398223415,1765440643031,-500.0,0.00038356,60]
[398223416,1765440643041,-501.66269031,0.00038356,60]
[398223417,1765440643055,-500.0,0.00038356,60]
[398223418,1765440643066,-500.0,0.00038356,60]
[398223419,1765440643076,-500.0,0.00038356,60]
[398223420,1765440643086,-500.0,0.00038356,60]
[398223421,1765440643096,-500.0,0.00038356,60]
[398223422,1765440643106,-515.20408178,0.00038356,60]
[398223423,1765440643115,-500.0,0.00038356,60]
[398223424,1765440643127,-500.0,0.00038356,60]
[398223425,1765440643136,-500.0,0.00038356,60]
[398223426,1765440643145,-508.63904632,0.00038356,60]
[398223427,1765440643157,-181.98,0.00038356,60]
[398223428,1765440643167,-482.03603286,0.00038356,60]
[398223429,1765440643178,-500.92952481,0.00038356,60]
[398223430,1765440643187,-500.0,0.00038356,60]
[398223431,1765440643197,-500.0,0.00038356,60]
[398223432,1765440643207,-501.01954221,0.00038356,60]
[398223433,1765440643216,-500.0,0.00038356,60]
[398223434,1765440643226,-500.0,0.00038356,60]
[398223435,1765440643235,-385.40985725,0.00038356,60]
[398223436,1765440643245,-500.0,0.00038356,60]
[398223437,1765440643254,-500.0,0.00038356,60]
[398223438,1765440643263,-500.0,0.00038356,60]
[398223439,1765440643273,-500.0,0.00038356,60]
[398223440,1765440643282,-500.0,0.00038356,60]
[398223441,1765440643292,-500.0,0.00038356,60]
[398223443,1765440643301,-156.80362835,0.00038356,60]
[398223445,1765440643311,-500.0,0.00038356,60]
[398223448,1765440643320,-500.0,0.00038356,60]
[398223450,1765440643329,-500.0,0.00038356,60]
[398223451,1765440643339,-500.0,0.00038356,60]
[398223452,1765440643351,-500.0,0.00038356,60]
[398223453,1765440643360,-500.0,0.00038356,60]
[398223454,1765440643369,-526.88584852,0.00038356,60]
[398223455,1765440643379,-151.0,0.00038356,31]
[398223456,1765440643388,-500.0,0.00038356,60]
[398223457,1765440643397,-500.0,0.00038356,60]
[398223458,1765440643407,-500.0,0.00038356,60]
[398223459,1765440643416,-500.0,0.00038356,60]
[398223460,1765440643425,-500.0,0.00038356,60]
[398223461,1765440643434,-505.22577321,0.00038356,60]
[398223462,1765440643444,-500.0,0.00038356,60]
[398223463,1765440643453,-500.0,0.00038356,60]
[398223464,1765440643462,-500.0,0.00038356,60]
[398223465,1765440643471,-500.0,0.00038356,60]
[398223466,1765440643481,-500.0,0.00038356,60]
[398223467,1765440643490,-500.0,0.00038356,60]
[398223468,1765440643499,-500.0,0.00038356,60]
[398223469,1765440643508,-500.0,0.00038356,60]
[398223470,1765440643518,-500.0,0.00038356,60]
[398223471,1765440643527,-500.0,0.00038356,60]
[398223472,1765440643536,-500.0,0.00038356,60]
[398223473,1765440643546,-500.0,0.00038356,60]
[398223474,1765440643555,-500.0,0.00038356,60]
[398223475,1765440643564,-500.0,0.00038356,60]
[398223476,1765440643574,-500.0,0.00038356,60]
[398223477,1765440643584,-500.0,0.00038356,60]
[398223478,1765440643594,-500.0,0.00038356,60]
[398223479,1765440643603,-209.25,0.00038356,60]
[398223480,1765440643613,-151.0,0.00038356,31]
[398223481,1765440643622,-151.0,0.00038356,31]
[398223482,1765440643632,-500.0,0.00038356,60]
[398223483,1765440643641,-529.33685879,0.00038356,60]
[398223484,1765440643651,-154.730468,0.00038356,31]
[398223485,1765440643661,-500.0,0.00038356,60]
[398223486,1765440643671,-500.0,0.00038356,60]
[398223487,1765440643680,-502.56795202,0.00038356,60]
[398223488,1765440643690,-151.0,0.00038356,14]
[398223489,1765440643701,-151.0,0.00038356,14]
[398223490,1765440643710,-500.0,0.00038356,60]
[398223491,1765440643720,-486.38165113,0.00038356,60]
[398223492,1765440643730,-500.0,0.00038356,60]
[398223493,1765440643749,-500.0,0.00038356,60]
[398223494,1765440643760,-500.0,0.00038356,60]
[398223495,1765440643770,-500.0,0.00038356,60]
[398223496,1765440643780,-500.0,0.00038356,60]
[398223497,1765440643790,-151.0,0.00038356,31]
[398223498,1765440643799,-507.64906003,0.00038356,60]
[398223499,1765440643809,-151.0,0.00038356,31]
[398223500,1765440643819,-500.0,0.00038356,60]
[398223501,1765440643829,-500.0,0.00038356,60]
[398223502,1765440643839,-500.0,0.00038356,60]
[398223503,1765440643849,-500.0,0.00038356,60]
[398223504,1765440643859,-500.0,0.00038356,60]
[398223505,1765440643869,-500.0,0.00038356,60]
[398223506,1765440643879,-500.0,0.00038356,60]
[398223507,1765440643888,-500.0,0.00038356,60]
[398223508,1765440643898,-500.0,0.00038356,60]
[398223509,1765440643908,-500.0,0.00038356,60]
[398223510,1765440643918,-500.0,0.00038356,60]
[398223511,1765440643927,-500.0,0.00038356,60]
[398223512,1765440643937,-234.246988,0.00038356,60]
[398223513,1765440643947,-172.347805,0.00038356,60]
[398223514,1765440643956,-178.016763,0.00038356,60]
[398223515,1765440643966,-500.0,0.00038356,60]
[398223516,1765440643975,-151.0,0.00038356,31]
[398223517,1765440643985,-151.0,0.00038356,31]
[398223518,1765440643994,-500.0,0.00038356,60]
[398223519,1765440644004,-500.0,0.00038356,60]
[398223520,1765440644015,-500.0,0.00038356,60]
[398223521,1765440644024,-500.0,0.00038356,60]
[398223522,1765440644034,-500.0,0.00038356,60]
[398223523,1765440644048,-500.0,0.00038356,60]
[398223524,1765440644058,-500.0,0.00038356,60]
[398223525,1765440644068,-500.0,0.00038356,60]
[398223526,1765440644079,-500.0,0.00038356,60]
[398223527,1765440644089,-500.0,0.00038356,60]
[398223528,1765440644098,-504.11478179,0.00038356,60]
[398223529,1765440644114,-500.0,0.00038356,60]
[398223530,1765440644131,-500.0,0.00038356,60]
[398223531,1765440644143,-500.0,0.00038356,60]
[398223532,1765440644154,-227.71404598,0.00038356,60]
[398223533,1765440644164,-500.0,0.00038356,60]
[398223534,1765440644174,-500.0,0.00038356,60]
[398223535,1765440644184,-500.0,0.00038356,60]
[398223536,1765440644193,-500.0,0.00038356,60]
[398223537,1765440644204,-500.0,0.00038356,60]
[398223538,1765440644213,-500.0,0.00038356,60]
[398223539,1765440644223,-500.0,0.00038356,60]
[398223540,1765440644233,-159.23218,0.00038356,31]
[398223541,1765440644242,-500.0,0.00038356,60]
[398223542,1765440644252,-500.0,0.00038356,60]
[398223543,1765440644261,-500.0,0.00038356,60]
[398223544,1765440644271,-500.0,0.00038356,60]
[398223545,1765440644280,-507.53172481,0.00038356,60]
[398223546,1765440644289,-633.81,0.00038356,11]
[398223547,1765440644299,-633.81,0.00038356,11]
[398223548,1765440644312,-633.81,0.00038356,11]
[398223549,1765440644322,-633.81,0.00038356,11]
[398223550,1765440644435,-633.81,0.00038356,11]
[398223551,1765440644445,-504.38131591,0.00038356,60]
[398223552,1765440644454,-633.81,0.00038356,11]
[398223553,1765440644463,-633.81,0.00038356,11]
[398223554,1765440644476,-633.81,0.00038356,11]
[398223555,1765440644485,-633.81,0.00038356,11]
[398223556,1765440644495,-633.81,0.00038356,11]
[398223557,1765440644504,-269.906202,0.00038356,5]
[398223558,1765440644513,-633.81,0.00038356,11]
[398223559,1765440644522,-633.81,0.00038356,11]
[398223560,1765440644531,-408.40744464,0.00038356,60]
[398223561,1765440644540,-633.81,0.00038356,11]
[398223562,1765440644549,-633.81,0.00038356,11]
[398223563,1765440644559,-633.81,0.00038356,11]
[398223564,1765440644568,-633.81,0.00038356,11]
[398223565,1765440644577,-633.81,0.00038356,11]
[398223566,1765440644586,-633.81,0.00038356,11]
[398223567,1765440644595,-633.81,0.00038356,11]
[398223568,1765440644604,-633.81,0.00038356,11]
[398223569,1765440644615,-500.0,0.00038356,60]
[398223570,1765440644624,-633.81,0.00038356,11]
[398223571,1765440644635,-500.0,0.00038356,60]
[398223572,1765440644645,-633.81,0.00038356,11]
[398223573,1765440644655,-500.0,0.00038356,60]
[398223574,1765440644664,-500.0,0.00038356,60]
[398223575,1765440644674,-633.81,0.00038356,11]
[398223576,1765440644686,-500.0,0.00038356,60]
[398223577,1765440644695,-634.0,0.00038356,11]
[398223578,1765440644704,-500.0,0.00038356,60]
[398223579,1765440644714,-500.0,0.00038356,60]
[398223580,1765440644725,-500.0,0.00038356,60]
[398223581,1765440644734,-500.0,0.00038356,60]
[398223582,1765440644744,-500.0,0.00038356,60]
[398223583,1765440644753,-529.09797181,0.00038356,60]
[398223584,1765440644762,-500.0,0.00038356,60]
[398223585,1765440644771,-500.0,0.00038356,60]
[398223586,1765440644780,-500.0,0.00038356,60]
[398223587,1765440644790,-500.0,0.00038356,60]
[398223588,1765440644799,-500.0,0.00038356,60]
[398223589,1765440644809,-500.0,0.00038356,60]
[398223590,1765440644818,-500.0,0.00038356,60]
[398223591,1765440644828,-500.0,0.00038356,60]
[398223592,1765440644837,-500.0,0.00038356,60]
[398223593,1765440644846,-500.0,0.00038356,60]
[398223594,1765440644856,-500.0,0.00038356,60]
[398223595,1765440644865,-500.0,0.00038356,60]
[398223596,1765440644877,-500.0,0.00038356,60]
[398223597,1765440644887,-500.0,0.00038356,60]
[398223598,1765440644896,-532.27675457,0.00038356,60]
[398223599,1765440644906,-500.0,0.00038356,60]
[398223600,1765440644915,-500.0,0.00038356,60]
[398223601,1765440644924,-500.0,0.00038356,60]
[398223602,1765440644934,-500.0,0.00038356,60]
[398223603,1765440644943,-233.02526655,0.00038356,60]
[398223604,1765440644953,-500.0,0.00038356,60]
[398223605,1765440644962,-500.0,0.00038356,60]
[398223606,1765440644971,-500.0,0.00038356,60]
[398223607,1765440644980,-500.0,0.00038356,60]
[398223608,1765440644989,-500.0,0.00038356,60]
[398223609,1765440644999,-500.0,0.00038356,60]
[398223610,1765440645008,-500.0,0.00038356,60]
[398223611,1765440645017,-500.0,0.00038356,60]
[398223612,1765440645026,-500.0,0.00038356,60]
[398223613,1765440645036,-500.0,0.00038356,60]